bitfinex/quotes_SOLUSD_20240620
["timestamp","ask_amount","ask_price","bid_price","bid_amount"]
[1718917304095,9.37,134.61,134.56,29.37]
[1718917304294,9.37,134.6,134.5,22.9436]
[1718917304513,9.37,134.59,134.5,22.9436]
[1718917304820,9.37,134.59,134.54,9.37]
[1718917305212,9.37,134.59,134.55,20.0]
[1718917305602,9.37,134.61,134.55,20.0]
[1718917305799,9.37,134.57,134.51,29.37]
[1718917307109,9.37,134.56,134.51,29.37]
[1718917307415,9.37,134.56,134.51,20.0]
[1718917308717,9.37,134.55,134.51,20.0]
[1718917309709,9.37,134.56,134.51,20.0]
[1718917310311,9.37,134.56,134.51,22.5227579]
[1718917310705,9.37,134.56,134.51,31.8927579]
[1718917311109,9.37,134.56,134.51,29.37]
[1718917311926,9.37,134.56,134.51,20.0]
[1718917312122,9.37,134.56,134.51,29.37]
[1718917312310,9.37,134.56,134.51,32.29980505]
[1718917312697,22.452,134.62,134.53,9.37]
[1718917312910,9.37,134.6,134.55,9.37]
[1718917313210,9.37,134.6,134.54,20.0]
[1718917313211,30.0,134.56,134.54,20.0]
[1718917313399,25.4362,134.62,134.55,9.37]
[1718917313724,9.37,134.61,134.56,32.33701984]
[1718917314035,9.37,134.61,134.57,20.0]
[1718917315029,14.1478616,134.65,134.57,20.0]
[1718917315030,14.1478616,134.65,134.57,36.5883]
[1718917315322,9.37,134.61,134.57,36.5883]
[1718917317400,19.75640674,134.65,134.57,36.5883]
[1718917317609,9.37,134.63,134.58,9.37]
[1718917317815,9.37,134.62,134.59,20.0]
[1718917318400,9.37,134.62,134.58,20.0]
[1718917321723,14.95044254,134.66,134.58,20.0]
[1718917321915,9.37,134.62,134.58,20.0]
[1718917322621,7.76252796,134.67,134.6,9.37]
[1718917322823,9.37,134.65,134.6,9.37]
[1718917323026,9.37,134.65,134.61,20.0]
[1718917323203,30.0,134.62,134.61,20.0]
[1718917323524,9.37,134.65,134.61,20.0]
[1718917323932,6.1025,134.68,134.6,9.37]
[1718917324226,9.37,134.65,134.61,20.0]
[1718917324721,9.37,134.64,134.59,9.37]
[1718917324917,9.37,134.64,134.6,20.0]
[1718917325812,43.5825,134.68,134.6,20.0]
[1718917326013,9.37,134.64,134.6,20.0]
[1718917326215,11.70023589,134.68,134.6,20.0]
[1718917326527,9.37,134.64,134.6,20.0]
[1718917327302,9.37,134.64,134.59,9.37]
[1718917327509,9.37,134.64,134.6,20.0]
[1718917329224,49.18023589,134.68,134.6,20.0]
[1718917329427,9.37,134.64,134.6,20.0]
[1718917332138,9.37,134.65,134.6,21.48390016]
[1718917333444,9.37,134.61,134.57,16.5883]
[1718917335125,9.37,134.58,134.52,15.1731]
[1718917335325,9.37,134.57,134.53,20.0]
[1718917336736,15.2397,134.64,134.56,9.37]
[1718917337037,9.37,134.61,134.57,20.0]
[1718917337619,9.37,134.62,134.57,45.9396]
[1718917338319,7.76371273,134.66,134.57,45.9396]
[1718917338836,9.37,134.63,134.57,45.9396]
[1718917339035,9.37,134.62,134.57,45.9396]
[1718917339412,7.76371273,134.66,134.57,45.9396]
[1718917339636,9.37,134.62,134.57,45.9396]
[1718917339835,7.76371273,134.66,134.57,45.9396]
[1718917340337,9.37,134.62,134.57,45.9396]
[1718917341114,7.76371273,134.66,134.58,9.37]
[1718917341317,22.6192,134.67,134.59,20.0]
[1718917341521,9.37,134.63,134.59,20.0]
[1718917341720,9.37,134.64,134.59,29.37]
[1718917342125,30.3844859,134.67,134.59,29.37]
[1718917342416,9.37,134.64,134.59,29.37]
[1718917342634,9.37,134.64,134.59,20.0]
[1718917342832,30.3844859,134.67,134.59,29.37]
[1718917343221,9.37,134.64,134.6,3.33917247]
[1718917346221,9.37,134.64,134.59,29.37]
[1718917347634,22.6192,134.67,134.59,29.37]
[1718917347835,5.59773589,134.68,134.59,29.37]
[1718917348037,37.48,134.68,134.6,0.6499112]
[1718917348225,9.37,134.65,134.6,0.6499112]
[1718917348428,9.37,134.65,134.6,1.42560846]
[1718917348630,37.48,134.68,134.6,1.42560846]
[1718917348829,9.37,134.65,134.6,10.79560846]
[1718917349038,9.37,134.65,134.61,20.0]
[1718917349217,9.37,134.65,134.6,1.42560846]
[1718917351132,9.37,134.65,134.6,2.34349305]
[1718917351526,37.48,134.68,134.6,2.34349305]
[1718917353324,37.48,134.68,134.6,20.0]
[1718917356626,9.37,134.64,134.6,20.0]
[1718917358452,9.37,134.64,134.59,9.37]
[1718917358630,9.37,134.64,134.6,20.0]
[1718917361624,37.48,134.68,134.61,22.1523]
[1718917361825,14.14986084,134.7,134.62,29.37]
[1718917362149,14.14986084,134.7,134.65,9.37]
[1718917362150,10.2111099,134.7,134.65,9.37]
[1718917362346,10.2111099,134.7,134.66,20.0]
[1718917365253,0.8411099,134.7,134.66,20.0]
[1718917365453,10.2111099,134.7,134.66,20.0]
[1718917366956,9.37,134.69,134.66,20.0]
[1718917367151,0.8411099,134.7,134.65,20.0]
[1718917367152,9.37,134.67,134.65,20.0]
[1718917368539,9.37,134.66,134.65,20.0]
[1718917368738,9.37,134.66,134.61,16.4515]
[1718917368935,9.37,134.64,134.62,20.0]
[1718917370357,6.6372,134.67,134.57,16.4313]
[1718917370535,9.37,134.59,134.54,9.37]
[1718917370741,9.37,134.59,134.55,20.0]
[1718917371048,9.37,134.59,134.54,9.37]
[1718917372036,9.37,134.59,134.53,16.4313]
[1718917372236,9.37,134.59,134.54,9.37]
[1718917372970,7.76878075,134.65,134.55,9.37]
[1718917373254,9.37,134.59,134.53,16.4313]
[1718917373554,9.37,134.59,134.54,29.37]
[1718917374644,9.37,134.59,134.54,31.06173736]
[1718917375251,9.37,134.59,134.55,1.69161162]
[1718917375861,9.37,134.6,134.55,11.06161162]
[1718917376161,9.37,134.6,134.56,20.0]
[1718917378965,9.37,134.59,134.56,20.0]
[1718917379258,9.37,134.59,134.55,20.0]
[1718917380245,7.76878075,134.65,134.55,20.0]
[1718917380452,9.37,134.6,134.55,9.37]
[1718917380677,9.37,134.6,134.56,20.0]
[1718917381352,9.37,134.59,134.56,20.0]
[1718917381557,7.76878075,134.65,134.49,15.1363]
[1718917381558,9.37,134.57,134.49,15.1363]
[1718917381753,9.37,134.55,134.5,29.37]
[1718917382559,9.37,134.56,134.5,29.37]
[1718917382869,9.37,134.56,134.51,9.37]
[1718917383173,9.37,134.57,134.52,29.37]
[1718917383467,60.83676703,134.61,134.53,20.0]
[1718917383679,9.37,134.58,134.53,9.37]
[1718917384359,9.37,134.59,134.53,9.37]
[1718917384563,9.37,134.58,134.53,9.37]
[1718917385453,9.37,134.58,134.54,1.484109]
[1718917385859,9.37,134.58,134.53,9.37]
[1718917389479,15.5886,134.61,134.53,9.37]
[1718917389661,9.37,134.58,134.54,20.0]
[1718917390681,9.37,134.59,134.54,9.37]
[1718917391060,9.37,134.58,134.53,9.37]
[1718917391284,9.37,134.58,134.54,20.0]
[1718917391959,9.37,134.58,134.49,15.1363]
[1718917391960,9.37,134.57,134.53,20.0]
[1718917392160,9.37,134.56,134.51,9.37]
[1718917392377,9.37,134.56,134.52,20.0]
[1718917392776,9.37,134.55,134.52,20.0]
[1718917393078,9.37,134.55,134.51,20.0]
[1718917393486,9.37,134.55,134.5,29.37]
[1718917394386,9.37,134.56,134.51,9.37]
[1718917394958,9.37,134.56,134.52,20.0]
[1718917395896,45.24682503,134.61,134.52,20.0]
[1718917396185,9.37,134.56,134.52,20.0]
[1718917396367,45.24682503,134.61,134.52,20.0]
[1718917396567,9.37,134.56,134.52,20.0]
[1718917398090,15.2909,134.6,134.49,15.1363]
[1718917398392,9.37,134.51,134.46,9.37]
[1718917398565,9.37,134.51,134.47,20.0]
[1718917399590,9.37,134.51,134.46,29.37]
[1718917399888,9.37,134.52,134.47,9.37]
[1718917400087,9.37,134.52,134.48,20.0]
[1718917400289,6.6597,134.57,134.48,20.0]
[1718917400488,9.37,134.52,134.48,20.0]
[1718917401793,9.37,134.52,134.47,9.37]
[1718917401971,9.37,134.52,134.48,20.0]
[1718917403782,9.37,134.52,134.47,20.0]
[1718917403985,9.37,134.52,134.46,20.0]
[1718917404296,9.37,134.51,134.46,20.0]
[1718917404796,9.37,134.5,134.46,20.0]
[1718917407800,9.37,134.49,134.46,20.0]
[1718917408376,25.9488,134.54,134.46,21.48304875]
[1718917408694,9.37,134.51,134.46,21.48304875]
[1718917409100,9.37,134.51,134.46,22.35071146]
[1718917409300,9.37,134.51,134.46,22.35209664]
[1718917409594,9.37,134.51,134.46,20.0]
[1718917410889,9.37,134.5,134.46,20.0]
[1718917411087,9.37,134.48,134.45,15.8066]
[1718917412697,9.37,134.49,134.45,15.8066]
[1718917412878,16.5788,134.54,134.46,29.37]
[1718917413078,9.37,134.51,134.46,29.37]
[1718917414573,9.37,134.51,134.46,20.0]
[1718917414781,9.37,134.5,134.46,20.0]
[1718917415509,54.0588,134.54,134.46,20.0]
[1718917415679,9.37,134.5,134.46,20.0]
[1718917415884,9.37,134.49,134.46,20.0]
[1718917418504,9.37,134.5,134.46,20.0]
[1718917418674,9.37,134.51,134.46,29.37]
[1718917418874,24.34544211,134.54,134.46,29.37]
[1718917419090,9.37,134.52,134.47,9.37]
[1718917419300,9.37,134.52,134.48,20.0]
[1718917426002,20.14082464,134.57,134.48,20.0]
[1718917426204,9.37,134.53,134.48,20.0]
[1718917426408,9.37,134.52,134.48,20.0]
[1718917427488,9.37,134.52,134.47,20.0]
[1718917428189,20.14082464,134.57,134.47,20.0]
[1718917428399,9.37,134.52,134.47,29.37]
[1718917428606,20.0,134.56,134.47,29.37]
[1718917428607,9.37,134.53,134.47,29.37]
[1718917429382,13.48112464,134.57,134.49,30.6691]
[1718917429591,13.48112464,134.57,134.5,29.37]
[1718917429592,9.37,134.55,134.5,29.37]
[1718917432590,9.37,134.55,134.5,20.0]
[1718917433716,9.37,134.54,134.5,20.0]
[1718917435010,13.48112464,134.57,134.5,20.0]
[1718917435197,9.37,134.53,134.5,20.0]
[1718917437002,13.48112464,134.57,134.5,20.0]
[1718917437003,9.37,134.52,134.5,20.0]
[1718917437311,9.37,134.51,134.49,15.2979]
[1718917437523,9.37,134.5,134.46,21.7495]
[1718917437706,9.37,134.5,134.47,20.0]
[1718917438712,9.37,134.51,134.47,20.0]
[1718917439605,7.76629438,134.55,134.47,20.0]
[1718917439932,9.37,134.51,134.47,20.0]
[1718917442119,9.37,134.52,134.47,20.0]
[1718917442615,7.76629438,134.55,134.48,10.85454469]
[1718917442818,9.37,134.53,134.49,1.4844343]
[1718917443120,9.37,134.53,134.48,9.37]
[1718917444301,5.7150313,134.57,134.48,9.37]
[1718917444496,9.37,134.54,134.49,9.37]
[1718917445428,2.0459,134.5,134.49,9.37]
[1718917449233,2.0459,134.5,134.47,20.0]
[1718917449419,2.0459,134.5,134.47,29.37]
[1718917451230,2.0459,134.5,134.47,20.0]
[1718917451537,11.4159,134.5,134.47,20.0]
[1718917452250,9.37,134.49,134.47,20.0]
[1718917452618,11.4159,134.5,134.47,20.0]
[1718917455132,11.4159,134.5,134.46,15.6722]
[1718917455338,39.37,134.48,134.43,32.2372]
[1718917455635,39.37,134.48,134.44,20.0]
[1718917457116,9.37,134.47,134.44,20.0]
[1718917457312,39.37,134.48,134.44,20.0]
[1718917458339,30.0,134.48,134.44,20.0]
[1718917458737,30.0,134.48,134.44,29.37]
[1718917459128,30.0,134.48,134.44,31.6256707]
[1718917460225,30.0,134.48,134.44,29.37]
[1718917460431,39.37,134.48,134.44,20.0]
[1718917462323,30.0,134.48,134.44,20.0]
[1718917462538,2.0459,134.5,134.47,9.37]
[1718917463844,2.0459,134.5,134.46,9.37]
[1718917465342,2.0459,134.5,134.47,20.0]
[1718917465536,2.0459,134.5,134.49,9.37]
[1718917465849,2.0459,134.5,134.49,30.85280301]
[1718917466631,2.0459,134.5,134.49,21.48280301]
[1718917466836,2.0459,134.5,134.49,32.34725076]
[1718917467142,2.0459,134.5,134.49,24.46231196]
[1718917467344,2.0459,134.5,134.49,33.83231196]
[1718917469146,2.0459,134.5,134.49,20.0]
[1718917470025,2.0459,134.5,134.49,29.37]
[1718917470221,2.0459,134.5,134.49,20.0]
[1718917470439,2.0459,134.5,134.49,20.61837645]
[1718917470633,2.0459,134.5,134.49,29.98837645]
[1718917470831,2.0459,134.5,134.49,31.75704788]
[1718917472036,2.0459,134.5,134.49,33.24656882]
[1718917473251,2.0459,134.5,134.49,23.87656882]
[1718917474344,2.0459,134.5,134.49,20.0]
[1718917479154,2.0459,134.5,134.49,22.36900448]
[1718917481252,2.0459,134.5,134.49,20.0]
[1718917482854,28.12202776,134.59,134.49,17.9541]
[1718917483043,37.46434256,134.59,134.49,17.9541]
[1718917484552,37.46434256,134.59,134.5,1.48277063]
[1718917486754,37.46434256,134.59,134.49,17.9541]
[1718917493759,45.0,134.58,134.49,17.9541]
[1718917497763,37.46434256,134.59,134.49,17.9541]
[1718917502161,45.0,134.58,134.49,17.9541]
[1718917504367,45.0,134.58,134.49,22.28794099]
[1718917507451,45.0,134.58,134.49,17.9541]
[1718917508244,45.0,134.58,134.49,19.8516256]
[1718917508444,45.0,134.58,134.49,22.82109409]
[1718917512476,7.76380993,134.59,134.52,15.7819]
[1718917512657,72.19394473,134.63,134.53,20.0]
[1718917512859,13.3334,134.54,134.53,20.0]
[1718917513294,85.70706225,134.63,134.53,20.0]
[1718917513655,2.39283518,134.62,134.53,20.0]
[1718917514062,47.39283518,134.62,134.53,20.0]
[1718917515779,21.6695,134.61,134.52,15.7819]
[1718917515979,26.29452526,134.61,134.52,15.7819]
[1718917516180,47.39283518,134.6,134.52,15.7819]
[1718917523695,55.15579839,134.6,134.52,15.7819]
[1718917528394,7.76296321,134.6,134.53,20.0]
[1718917528589,8.16640292,134.61,134.53,20.0]
[1718917537703,8.16640292,134.61,134.52,15.7819]
[1718917537914,45.0,134.6,134.52,15.7819]
[1718917538281,53.16640292,134.6,134.52,15.7819]
[1718917539201,60.93153152,134.6,134.52,15.7819]
[1718917542291,15.93153152,134.6,134.52,15.7819]
[1718917548398,8.16640292,134.6,134.53,20.0]
[1718917553361,9.34206646,134.62,134.53,20.95721204]
[1718917553512,9.34206646,134.62,134.53,22.44136962]
[1718917553905,9.34206646,134.62,134.53,23.9254147]
[1718917554906,45.0,134.61,134.53,23.9254147]
[1718917555702,45.0,134.61,134.53,20.0]
[1718917555896,2.38307434,134.61,134.53,20.0]
[1718917556099,4.76614868,134.61,134.53,20.0]
[1718917556297,45.0,134.6,134.53,20.0]
[1718917563627,52.76462621,134.6,134.53,20.0]
[1718917564813,45.0,134.6,134.53,20.0]
[1718917566228,4.76614868,134.61,134.54,5.62633171]
[1718917566430,5.74829969,134.63,134.54,5.62633171]
[1718917566431,20.0,134.62,134.54,5.62633171]
[1718917566725,45.0,134.61,134.54,5.62633171]
[1718917566936,45.0,134.61,134.53,25.62633175]
[1718917567640,2.38307434,134.61,134.53,20.0]
[1718917567841,54.34206646,134.61,134.53,20.0]
[1718917569421,54.34206646,134.61,134.54,3.51920435]
[1718917569634,9.34206646,134.61,134.53,20.0]
[1718917569838,9.34206646,134.61,134.53,22.0343739]
[1718917570042,9.34206646,134.61,134.53,23.51860189]
[1718917570430,9.34206646,134.61,134.53,20.0]
[1718917571019,45.0,134.6,134.53,20.0]
[1718917572037,54.34206646,134.6,134.53,20.0]
[1718917575731,9.34206646,134.6,134.53,20.0]
[1718917575933,28.11262614,134.62,134.53,20.0]
[1718917576240,28.11262614,134.62,134.53,20.67207867]
[1718917577332,37.4546926,134.62,134.53,20.0]
[1718917579822,37.4546926,134.62,134.54,0.47762878]
[1718917580424,37.4546926,134.62,134.53,20.0]
[1718917583833,45.0,134.61,134.53,20.0]
[1718917584027,47.38307434,134.61,134.52,15.7819]
[1718917584233,22.39308352,134.6,134.52,15.7819]
[1718917584442,45.0,134.59,134.52,15.7819]
[1718917584638,20.0,134.58,134.52,15.7819]
[1718917585351,30.0,134.54,134.52,15.7819]
[1718917609952,30.0,134.54,134.51,6.5812]
[1718917610160,30.0,134.54,134.49,15.6536]
[1718917612469,30.0,134.54,134.47,6.4693]
[1718917613965,30.0,134.54,134.38,22.36]
[1718917613966,30.0,134.54,134.43,15.6536]
[1718917614166,45.0,134.53,134.43,15.6536]
[1718917614366,30.0,134.51,134.43,15.6536]
[1718917617771,30.0,134.51,134.39,22.0837]
[1718917617949,30.0,134.51,134.4,20.0]
[1718917620765,30.0,134.51,134.41,2.2896431]
[1718917623371,30.0,134.51,134.42,0.40751452]
[1718917623575,30.0,134.51,134.4,20.0]
[1718917629178,30.0,134.51,134.41,4.38792968]
[1718917631387,30.0,134.51,134.4,20.0]
[1718917640088,6.4366,134.49,134.4,20.0]
[1718917640390,30.0,134.48,134.4,20.0]
[1718917645372,30.0,134.48,134.41,1.387222]
[1718917647602,30.0,134.48,134.41,1.387222]
[1718917648496,30.0,134.48,134.41,2.97883085]
[1718917650491,30.0,134.48,134.4,20.0]
[1718917653277,15.1146,134.47,134.4,20.0]
[1718917653496,21.4124,134.47,134.37,20.0]
[1718917653699,30.0,134.46,134.36,20.0]
[1718917656187,30.0,134.46,134.37,1.3688617]
[1718917656582,30.0,134.46,134.36,20.0]
[1718917659405,30.0,134.46,134.37,0.37397573]
[1718917659586,30.0,134.46,134.37,1.35117613]
[1718917661110,21.8323,134.45,134.37,1.35117613]
[1718917661303,30.0,134.44,134.37,1.35117613]
[1718917661610,30.0,134.44,134.35,1.35117613]
[1718917662995,30.0,134.44,134.35,2.83735143]
[1718917663312,30.0,134.44,134.36,2.83729146]
[1718917664196,30.0,134.44,134.37,4.32309844]
[1718917665411,30.0,134.44,134.35,4.52153782]
[1718917665617,30.0,134.44,134.36,4.53269838]
[1718917666413,30.0,134.44,134.34,20.0]
[1718917667914,16.6014,134.43,134.34,20.0]
[1718917668114,6.5022,134.42,134.33,20.0]
[1718917668299,16.6014,134.41,134.33,20.0]
[1718917668500,16.6014,134.41,134.32,20.0]
[1718917668710,30.0,134.4,134.32,20.0]
[1718917669224,6.5022,134.39,134.32,20.0]
[1718917669528,6.5022,134.39,134.29,20.0]
[1718917669688,16.6014,134.38,134.29,20.0]
[1718917669895,30.0,134.37,134.29,20.0]
[1718917670313,30.0,134.37,134.26,20.0]
[1718917670721,30.0,134.37,134.25,280.9557]
[1718917671604,30.0,134.37,134.26,0.34]
[1718917672522,30.0,134.37,134.26,20.34]
[1718917674713,30.0,134.37,134.26,20.17]
[1718917675695,23.0846,134.36,134.26,20.17]
[1718917677928,22.6068,134.34,134.26,20.0]
[1718917678100,22.6068,134.34,134.23,0.8411099]
[1718917679404,30.0,134.33,134.23,0.8411099]
[1718917682031,30.0,134.33,134.23,386.5411099]
[1718917682529,30.0,134.33,134.24,20.0]
[1718917685335,30.0,134.33,134.25,0.17]
[1718917686631,22.6068,134.34,134.25,0.17]
[1718917688229,22.6068,134.34,134.24,0.17]
[1718917689225,22.6068,134.34,134.23,20.8411099]
[1718917689427,22.6068,134.34,134.24,2.48169323]
[1718917691514,22.6068,134.34,134.23,20.8411099]
[1718917691838,6.1731,134.31,134.23,20.8411099]
[1718917692008,6.1731,134.31,134.23,0.8411099]
[1718917700916,15.1675,134.32,134.24,16.2237]
[1718917701117,15.1675,134.32,134.25,21.51604996]
[1718917701537,15.1675,134.32,134.25,20.0]
[1718917709934,6.075,134.35,134.25,20.0]
[1718917710131,6.075,134.35,134.26,0.17]
[1718917710746,16.0963,134.36,134.26,0.17]
[1718917710933,16.0963,134.36,134.26,7.0664]
[1718917711132,16.0963,134.36,134.27,20.0]
[1718917713447,16.0963,134.36,134.28,2.96463836]
[1718917713833,6.2621,134.38,134.29,15.7287]
[1718917714038,16.6343,134.39,134.3,24.46027369]
[1718917714355,16.6343,134.39,134.31,6.7534]
[1718917714657,16.6343,134.39,134.32,24.45960956]
[1718917714834,16.6343,134.39,134.33,4.46046317]
[1718917715249,16.6343,134.39,134.32,20.0]
[1718917722060,6.3936,134.41,134.32,20.0]
[1718917722265,6.3936,134.41,134.33,1.48653873]
[1718917723472,16.2248,134.42,134.33,1.48653873]
[1718917723655,16.2248,134.42,134.34,15.7119]
[1718917723858,16.2248,134.42,134.35,21.4864585]
[1718917724051,16.2248,134.42,134.36,1.48634786]
[1718917726755,7.76097725,134.46,134.36,8.14584786]
[1718917726956,24.49656646,134.47,134.37,20.0]
[1718917727351,30.42435343,134.47,134.37,20.0]
[1718917730657,30.42435343,134.47,134.38,1.05946243]
[1718917731466,30.42435343,134.47,134.37,20.0]
[1718917734369,30.42435343,134.47,134.38,2.55867895]
[1718917734971,30.42435343,134.47,134.38,4.04502262]
[1718917736470,30.42435343,134.47,134.37,20.0]
[1718917737254,30.42435343,134.47,134.38,2.54693763]
[1718917738078,30.42435343,134.47,134.37,20.0]
[1718917738375,45.0,134.46,134.37,20.0]
[1718917738559,45.0,134.46,134.34,15.7119]
[1718917738560,45.0,134.46,134.35,20.0]
[1718917738766,54.34206646,134.46,134.35,20.0]
[1718917740277,54.34206646,134.46,134.36,0.60117058]
[1718917740865,54.34206646,134.46,134.35,20.0]
[1718917741358,9.34206646,134.46,134.35,20.0]
[1718917741962,28.83967448,134.47,134.35,20.0]
[1718917742161,28.83967448,134.47,134.36,6.95678296]
[1718917742367,28.83967448,134.47,134.37,20.0]
[1718917743367,38.18174094,134.47,134.37,20.0]
[1718917748088,17.09945397,134.47,134.38,16.3701]
[1718917748277,7.75738751,134.47,134.39,26.96268404]
[1718917748600,15.7075,134.54,134.4,19.20210634]
[1718917748882,15.7075,134.54,134.41,20.0]
[1718917749088,15.7075,134.54,134.42,2.92718738]
[1718917749089,2.39308352,134.53,134.42,2.92718738]
[1718917749271,2.39308352,134.53,134.43,2.92742239]
[1718917751165,47.39308352,134.53,134.43,2.92742239]
[1718917751570,47.39308352,134.53,134.41,20.0]
[1718917752985,2.39308352,134.53,134.41,20.0]
[1718917753376,2.39308352,134.53,134.42,0.55919573]
[1718917753781,2.39308352,134.53,134.41,20.0]
[1718917754170,47.39308352,134.53,134.41,20.0]
[1718917759567,2.39308352,134.53,134.42,21.9972]
[1718917759766,2.39308352,134.53,134.43,20.0]
[1718917760172,23.46295115,134.54,134.43,20.0]
[1718917760385,23.46295115,134.54,134.44,15.4349]
[1718917760586,23.46295115,134.54,134.45,20.0]
[1718917761086,23.46295115,134.54,134.46,1.84032977]
[1718917761579,23.46295115,134.54,134.45,20.0]
[1718917762171,30.40192491,134.54,134.45,20.0]
[1718917766291,45.0,134.53,134.45,20.0]
[1718917767797,49.78616704,134.53,134.45,20.0]
[1718917767998,54.34206646,134.53,134.45,20.0]
[1718917770794,54.34206646,134.53,134.44,15.4349]
[1718917776812,62.10157798,134.53,134.44,15.4349]
[1718917782385,62.10157798,134.53,134.45,7.31915924]
[1718917782787,62.10157798,134.53,134.44,15.4349]
[1718917784513,17.10157798,134.53,134.44,15.4349]
[1718917784683,17.10157798,134.53,134.45,20.0]
[1718917784887,17.10157798,134.53,134.46,2.40999111]
[1718917785103,17.10157798,134.53,134.45,20.0]
[1718917785706,17.10157798,134.53,134.46,0.84294568]
[1718917787313,17.10157798,134.53,134.46,2.33558062]
[1718917787495,17.10157798,134.53,134.46,4.26543311]
[1718917788901,17.10157798,134.53,134.47,6.4979]
[1718917789097,17.10157798,134.53,134.48,35.2409]
[1718917789098,7.75951152,134.53,134.48,35.2409]
[1718917789306,9.34206646,134.57,134.49,2.77998341]
[1718917789619,30.0,134.5,134.49,2.77998341]
[1718917789791,30.0,134.5,134.48,35.2409]
[1718917789991,15.03515775,134.57,134.48,35.2409]
[1718917790792,15.03515775,134.57,134.49,2.67435631]
[1718917791001,15.03515775,134.57,134.48,35.2409]
[1718917800398,45.0,134.56,134.49,4.96642693]
[1718917800619,15.03515775,134.57,134.48,35.2409]
[1718917801301,45.0,134.56,134.48,35.2409]
[1718917807127,45.0,134.56,134.47,6.4979]
[1718917807318,45.0,134.56,134.45,16.2518]
[1718917807319,9.34206646,134.55,134.45,16.2518]
[1718917807503,45.0,134.54,134.46,20.0]
[1718917808103,30.0,134.49,134.46,20.0]
[1718917810043,30.0,134.49,134.47,1.48490965]
[1718917810205,30.0,134.49,134.47,6.6317]
[1718917810524,9.34206646,134.55,134.47,6.6317]
[1718917815424,9.34206646,134.55,134.48,1.14070984]
[1718917815631,9.34206646,134.55,134.47,6.6317]
[1718917818635,9.34206646,134.56,134.47,6.6317]
[1718917819717,45.0,134.55,134.47,6.6317]
[1718917820138,13.44551681,134.57,134.47,6.6317]
[1718917820139,2.39308352,134.54,134.47,6.6317]
[1718917828434,47.39308352,134.54,134.47,6.6317]
[1718917832953,47.39308352,134.54,134.45,16.2518]
[1718917833922,30.0,134.48,134.45,16.2518]
[1718917862863,5.92666606,134.5,134.45,16.2518]
[1718917862864,7.7762686,134.52,134.46,20.0]
[1718917863059,2.39308352,134.54,134.47,6.3213]
[1718917863256,2.38307434,134.56,134.48,18.23229238]
[1718917863576,30.0,134.49,134.48,15.946]
[1718917863771,30.0,134.49,134.48,35.946]
[1718917863972,4.77615786,134.56,134.48,35.946]
[1718917864655,4.77615786,134.56,134.49,1.87073714]
[1718917865047,4.77615786,134.56,134.49,4.84060496]
[1718917865658,4.77615786,134.56,134.49,24.84060496]
[1718917866281,4.77615786,134.56,134.49,20.0]
[1718917881657,7.76942094,134.55,134.49,20.0]